fUSD/lending_fUSD_20250906
["ID","MTS","AMOUNT","RATE_DAILY","PERIOD"]
[383927701,1757175047764,-173.274352,0.00032877,7]
[383927702,1757175047774,-173.274352,0.00032877,7]
[383927703,1757175047784,-173.274352,0.00032877,7]
[383927704,1757175047794,-151.0,0.00032877,7]
[383927705,1757175047804,-151.0,0.00032877,7]
[383927706,1757175047814,-151.0,0.00032877,7]
[383927707,1757175047825,-151.0,0.00032877,7]
[383927708,1757175047835,-151.0,0.00032877,7]
[383927709,1757175047846,-151.0,0.00032877,7]
[383927710,1757175047856,-151.0,0.00032877,7]
[383927711,1757175047866,-154.401558,0.00032877,7]
[383927712,1757175047876,-151.0,0.00032877,7]
[383927713,1757175047886,-151.0,0.00032877,7]
[383927714,1757175047895,-151.0,0.00032877,7]
[383927715,1757175047906,-151.0,0.00032877,7]
[383927716,1757175047916,-207.057831,0.00032877,7]
[383927717,1757175047926,-151.0,0.00032877,7]
[383927718,1757175047935,-195.152575,0.00032877,7]
[383927719,1757175047946,-151.471257,0.00032877,7]
[383927720,1757175047956,-156.380816,0.00032877,7]
[383927721,1757175047966,-151.0,0.00032877,7]
[383927722,1757175047976,-151.0,0.00032877,7]
[383927723,1757175047986,-151.0,0.00032877,7]
[383927724,1757175047997,-151.0,0.00032877,7]
[383927725,1757175048006,-151.0,0.00032877,7]
[383927726,1757175048016,-151.0,0.00032877,7]
[383927727,1757175048026,-151.0,0.00032877,7]
[383927728,1757175048036,-151.0,0.00032877,7]
[383927729,1757175048046,-151.0,0.00032877,7]
[383927730,1757175048056,-228.877384,0.00032877,7]
[383927731,1757175048066,-152.717781,0.00032877,7]
[383927732,1757175048077,-151.0,0.00032877,7]
[383927733,1757175048087,-248.534305,0.00032877,7]
[383927734,1757175048097,-151.0,0.00032877,7]
[383927735,1757175048107,-151.0,0.00032877,7]
[383927736,1757175048117,-189.734526,0.00032877,7]
[383927737,1757175048127,-189.734526,0.00032877,7]
[383927738,1757175048137,-508.625492,0.00032877,7]
[383927739,1757175048147,-189.734526,0.00032877,7]
[383927740,1757175048157,-508.625492,0.00032877,7]
[383927741,1757175048168,-189.734526,0.00032877,7]
[383927742,1757175048177,-508.625492,0.00032877,7]
[383927743,1757175048187,-189.734526,0.00032877,7]
[383927744,1757175048197,-508.625492,0.00032877,7]
[383927745,1757175048207,-189.734526,0.00032877,7]
[383927746,1757175048218,-279.134845,0.00032877,7]
[383927747,1757175048228,-279.134845,0.00032877,7]
[383927748,1757175048238,-508.625492,0.00032877,7]
[383927749,1757175048247,-279.134845,0.00032877,7]
[383927750,1757175048257,-508.625492,0.00032877,7]
[383927751,1757175048267,-189.734526,0.00032877,7]
[383927752,1757175048277,-279.134845,0.00032877,7]
[383927753,1757175048287,-189.734526,0.00032877,7]
[383927754,1757175048299,-279.134845,0.00032877,7]
[383927755,1757175048309,-508.625492,0.00032877,7]
[383927756,1757175048319,-279.134845,0.00032877,7]
[383927757,1757175048329,-151.0,0.00032877,7]
[383927758,1757175048338,-151.0,0.00032877,7]
[383927759,1757175048634,-508.625492,0.00032877,7]
[383927760,1757175048661,-151.0,0.00032877,7]
[383927761,1757175048671,-151.0,0.00032877,7]
[383927762,1757175048681,-279.134845,0.00032877,7]
[383927763,1757175048691,-279.134845,0.00032877,7]
[383927764,1757175048701,-151.0,0.00032877,7]
[383927765,1757175048712,-151.0,0.00032877,7]
[383927766,1757175048722,-151.0,0.00032877,7]
[383927767,1757175048732,-151.0,0.00032877,7]
[383927768,1757175048742,-151.0,0.00032877,7]
[383927769,1757175048752,-151.365262,0.00032877,7]
[383927770,1757175048763,-151.0,0.00032877,7]
[383927771,1757175048773,-151.0,0.00032877,7]
[383927772,1757175048782,-151.0,0.00032877,7]
[383927773,1757175048793,-151.0,0.00032877,7]
[383927774,1757175048802,-151.0,0.00032877,7]
[383927775,1757175048812,-151.0,0.00032877,7]
[383927776,1757175048822,-151.0,0.00032877,7]
[383927777,1757175048832,-151.0,0.00032877,7]
[383927778,1757175048841,-151.0,0.00032877,7]
[383927779,1757175048851,-151.0,0.00032877,7]
[383927780,1757175048861,-155.888138,0.00032877,7]
[383927781,1757175048871,-155.888138,0.00032877,7]
[383927782,1757175048881,-151.0,0.00032877,7]
[383927783,1757175048891,-152.340331,0.00032877,7]
[383927784,1757175048902,-151.0,0.00032877,7]
[383927785,1757175048912,-151.0,0.00032877,7]
[383927786,1757175048921,-155.888138,0.00032877,7]
[383927787,1757175048930,-155.888138,0.00032877,7]
[383927788,1757175048940,-151.0,0.00032877,7]
[383927789,1757175048950,-155.888138,0.00032877,7]
[383927790,1757175048961,-193.296772,0.00032877,7]
[383927791,1757175048971,-155.888138,0.00032877,7]
[383927792,1757175048982,-193.296772,0.00032877,7]
[383927793,1757175048994,-155.888138,0.00032877,7]
[383927794,1757175049004,-193.296772,0.00032877,7]
[383927795,1757175049015,-155.888138,0.00032877,7]
[383927796,1757175049025,-193.296772,0.00032877,7]
[383927797,1757175049035,-151.0,0.00032877,7]
[383927798,1757175049046,-193.296772,0.00032877,7]
[383927799,1757175049056,-151.0,0.00032877,7]
[383927800,1757175049067,-151.0,0.00032877,7]
[383927801,1757175049077,-193.296772,0.00032877,7]
[383927802,1757175049087,-151.0,0.00032877,7]
[383927803,1757175049097,-151.0,0.00032877,7]
[383927804,1757175049108,-151.0,0.00032877,7]
[383927805,1757175049118,-151.0,0.00032877,7]
[383927806,1757175049128,-193.296772,0.00032877,7]
[383927807,1757175049138,-151.0,0.00032877,7]
[383927808,1757175049148,-193.296772,0.00032877,7]
[383927809,1757175049158,-151.0,0.00032877,7]
[383927810,1757175049169,-151.0,0.00032877,7]
[383927811,1757175049179,-151.0,0.00032877,7]
[383927812,1757175049190,-151.0,0.00032877,7]
[383927813,1757175049200,-258.077976,0.00032877,7]
[383927814,1757175049209,-172.287321,0.00032877,7]
[383927815,1757175049219,-172.287321,0.00032877,7]
[383927816,1757175049229,-172.287321,0.00032877,7]
[383927817,1757175049238,-172.287321,0.00032877,7]
[383927818,1757175049248,-172.287321,0.00032877,7]
[383927819,1757175049258,-172.287321,0.00032877,7]
[383927820,1757175049268,-172.287321,0.00032877,7]
[383927821,1757175049278,-172.287321,0.00032877,7]
[383927822,1757175049287,-151.0,0.00032877,7]
[383927823,1757175049297,-151.0,0.00032877,7]
[383927824,1757175049307,-153.255323,0.00032877,7]
[383927825,1757175049317,-151.0,0.00032877,7]
[383927826,1757175049327,-151.0,0.00032877,7]
[383927827,1757175049337,-151.0,0.00032877,7]
[383927828,1757175049347,-210.81655,0.00032877,7]
[383927829,1757175049357,-151.0,0.00032877,7]
[383927830,1757175049367,-154.31279,0.00032877,7]
[383927831,1757175049378,-154.31279,0.00032877,7]
[383927832,1757175049388,-151.0,0.00032877,7]
[383927833,1757175049399,-151.0,0.00032877,7]
[383927834,1757175049410,-154.31279,0.00032877,7]
[383927835,1757175049421,-154.31279,0.00032877,7]
[383927836,1757175049431,-154.31279,0.00032877,7]
[383927837,1757175049441,-154.31279,0.00032877,7]
[383927838,1757175049451,-154.31279,0.00032877,7]
[383927839,1757175049462,-154.31279,0.00032877,7]
[383927840,1757175049472,-151.0,0.00032877,7]
[383927841,1757175049482,-151.0,0.00032877,7]
[383927842,1757175049492,-151.0,0.00032877,7]
[383927843,1757175049501,-210.656511,0.00032877,7]
[383927844,1757175049511,-151.0,0.00032877,7]
[383927845,1757175049521,-151.0,0.00032877,7]
[383927846,1757175049531,-151.0,0.00032877,7]
[383927847,1757175049541,-151.0,0.00032877,7]
[383927848,1757175049551,-151.0,0.00032877,7]
[383927849,1757175049562,-256.396988,0.00032877,7]
[383927850,1757175049571,-151.0,0.00032877,7]
[383927851,1757175049581,-151.0,0.00032877,7]
[383927852,1757175049591,-151.0,0.00032877,7]
[383927853,1757175049600,-151.0,0.00032877,7]
[383927854,1757175049611,-151.0,0.00032877,7]
[383927855,1757175049621,-151.0,0.00032877,7]
[383927856,1757175049631,-151.0,0.00032877,7]
[383927857,1757175049641,-165.153119,0.00032877,7]
[383927858,1757175049651,-151.0,0.00032877,7]
[383927859,1757175049661,-151.0,0.00032877,7]
[383927860,1757175049671,-151.0,0.00032877,7]
[383927861,1757175049680,-151.0,0.00032877,7]
[383927862,1757175049690,-152.875637,0.00032877,7]
[383927863,1757175049700,-151.0,0.00032877,7]
[383927864,1757175049710,-151.524158,0.00032877,7]
[383927865,1757175049720,-151.0,0.00032877,7]
[383927866,1757175049730,-151.0,0.00032877,7]
[383927867,1757175049740,-158.90282413,0.00032877,7]
[383927868,1757175049753,-173.81,0.00032878,2]
[383927869,1757175049763,-160.0,0.000329,7]
[383927870,1757175049772,-3011.38049103,0.000329,7]
[383927871,1757175049782,-1500.0,0.00032979,5]
[383927872,1757175049792,-185.00211874,0.00032979,5]
[383927873,1757175049802,-250.0,0.00033,7]
[383927874,1757175049811,-500.0,0.00033067,5]
[383927875,1757175049821,-500.0,0.00033067,5]
[383927876,1757175049831,-2152.52708917,0.0003312,2]
[383927877,1757175049842,-1787.01396795,0.0003316,5]
[383927878,1757175049853,-153.16803983,0.00033175,5]
[383927879,1757175049863,-9705.73709222,0.00033225,2]
[383927880,1757175049872,-166.66,0.00033243,2]
[383927881,1757175049882,-202.990466,0.00033302,7]
[383927882,1757175049892,-200.0,0.00033305,2]
[383927883,1757175049902,-151.0,0.00033305,7]
[383927884,1757175049912,-151.0,0.00033305,7]
[383927885,1757175049921,-151.0,0.00033305,7]
[383927886,1757175049930,-151.0,0.00033305,7]
[383927887,1757175049939,-151.0,0.00033305,7]
[383927888,1757175049949,-151.0,0.00033305,7]
[383927889,1757175049959,-431.294574,0.00033305,7]
[383927890,1757175049969,-431.294574,0.00033305,7]
[383927891,1757175049979,-431.294574,0.00033305,7]
[383927892,1757175049989,-431.294574,0.00033305,7]
[383927893,1757175049999,-151.0,0.00033305,7]
[383927894,1757175050009,-151.0,0.00033305,7]
[383927895,1757175050019,-151.0,0.00033305,7]
[383927896,1757175050029,-151.0,0.00033305,7]
[383927897,1757175050038,-151.0,0.00033305,7]
[383927898,1757175050047,-151.0,0.00033305,7]
[383927899,1757175050057,-286.241437,0.00033305,7]
[383927900,1757175050066,-286.241437,0.00033305,7]
[383927901,1757175050076,-286.241437,0.00033305,7]
[383927902,1757175050085,-286.241437,0.00033305,7]
[383927903,1757175050095,-151.0,0.00033305,7]
[383927904,1757175050105,-151.0,0.00033305,7]
[383927905,1757175050115,-173.274352,0.00033305,7]
[383927906,1757175050124,-173.274352,0.00033305,7]
[383927907,1757175050134,-151.0,0.00033305,7]
[383927908,1757175050144,-173.274352,0.00033305,7]
[383927909,1757175050154,-173.274352,0.00033305,7]
[383927910,1757175050165,-151.0,0.00033305,7]
[383927911,1757175050175,-151.0,0.00033305,7]
[383927912,1757175050186,-151.0,0.00033305,7]
[383927913,1757175050195,-151.0,0.00033305,7]
[383927914,1757175050206,-211.825612,0.00033305,7]
[383927915,1757175050216,-151.0,0.00033305,7]
[383927916,1757175050227,-300.0,0.00033305,5]
[383927917,1757175050236,-151.0,0.00033305,7]
[383927918,1757175050247,-151.0,0.00033305,7]
[383927919,1757175050257,-151.0,0.00033305,7]
[383927920,1757175050266,-254.6315,0.00033305,7]
[383927921,1757175050276,-254.6315,0.00033305,7]
[383927922,1757175050286,-189.734526,0.00033305,7]
[383927923,1757175050296,-254.6315,0.00033305,7]
[383927924,1757175050306,-508.625492,0.00033305,7]
[383927925,1757175050315,-189.734526,0.00033305,7]
[383927926,1757175050325,-254.6315,0.00033305,7]
[383927927,1757175050335,-508.625492,0.00033305,7]
[383927928,1757175050345,-189.734526,0.00033305,7]
[383927929,1757175050354,-279.134845,0.00033305,7]
[383927930,1757175050364,-508.625492,0.00033305,7]
[383927931,1757175050374,-279.134845,0.00033305,7]
[383927932,1757175050384,-189.734526,0.00033305,7]
[383927933,1757175050394,-279.134845,0.00033305,7]
[383927934,1757175050404,-508.625492,0.00033305,7]
[383927935,1757175050414,-151.0,0.00033305,7]
[383927936,1757175050424,-151.0,0.00033305,7]
[383927937,1757175050435,-279.134845,0.00033305,7]
[383927938,1757175050444,-151.0,0.00033305,7]
[383927939,1757175050454,-151.0,0.00033305,7]
[383927940,1757175050465,-151.0,0.00033305,7]
[383927941,1757175050475,-151.0,0.00033305,7]
[383927942,1757175050486,-151.0,0.00033305,7]
[383927943,1757175050496,-151.0,0.00033305,7]
[383927944,1757175050505,-151.0,0.00033305,7]
[383927945,1757175050515,-155.888138,0.00033305,7]
[383927946,1757175050525,-151.0,0.00033305,7]
[383927947,1757175050535,-155.888138,0.00033305,7]
[383927948,1757175050545,-155.888138,0.00033305,7]
[383927949,1757175050555,-193.296772,0.00033305,7]
[383927950,1757175050565,-155.888138,0.00033305,7]
[383927951,1757175050575,-193.296772,0.00033305,7]
[383927952,1757175050585,-151.0,0.00033305,7]
[383927953,1757175050595,-193.296772,0.00033305,7]
[383927954,1757175050605,-151.0,0.00033305,7]
[383927955,1757175050615,-151.0,0.00033305,7]
[383927956,1757175050625,-151.0,0.00033305,7]
[383927957,1757175050634,-193.296772,0.00033305,7]
[383927958,1757175050644,-151.0,0.00033305,7]
[383927959,1757175050653,-151.0,0.00033305,7]
[383927960,1757175050662,-172.287321,0.00033305,7]
[383927961,1757175050672,-172.287321,0.00033305,7]
[383927962,1757175050682,-172.287321,0.00033305,7]
[383927963,1757175050691,-172.287321,0.00033305,7]
[383927964,1757175050702,-151.0,0.00033305,7]
[383927965,1757175050711,-151.0,0.00033305,7]
[383927966,1757175050721,-154.31279,0.00033305,7]
[383927967,1757175050730,-151.0,0.00033305,7]
[383927968,1757175050740,-154.31279,0.00033305,7]
[383927969,1757175050753,-154.31279,0.00033305,7]
[383927970,1757175050763,-154.31279,0.00033305,7]
[383927971,1757175050773,-151.0,0.00033305,7]
[383927972,1757175050783,-151.0,0.00033305,7]
[383927973,1757175050793,-176.800211,0.00033305,7]
[383927974,1757175050802,-151.0,0.00033305,7]
[383927975,1757175050812,-176.800211,0.00033305,7]
[383927976,1757175050822,-176.800211,0.00033305,7]
[383927977,1757175050831,-176.800211,0.00033305,7]
[383927978,1757175050841,-151.0,0.00033305,7]
[383927979,1757175050851,-174.758262,0.00033305,7]
[383927980,1757175050860,-151.0,0.00033305,7]
[383927981,1757175050870,-160.209909,0.00033305,7]
[383927982,1757175050880,-151.0,0.00033305,2]
[383927983,1757175050890,-151.0,0.00033305,2]
[383927984,1757175050899,-151.0,0.00033305,7]
[383927985,1757175050908,-151.0,0.00033305,7]
[383927986,1757175050918,-151.0,0.00033305,7]
[383927987,1757175050928,-151.0,0.00033305,7]
[383927988,1757175050938,-224.810867,0.00033305,7]
[383927989,1757175050947,-151.0,0.00033305,7]
[383927990,1757175050957,-151.0,0.00033305,7]
[383927991,1757175050966,-237577.60763557,0.00033305,2]
[383927992,1757175051963,-151.0,0.00030138,2]
[383927993,1757175051973,-151.0,0.00030138,2]
[383927994,1757175051983,-4499.70212018,0.00033305,2]
[383927995,1757175052022,-935.2168,0.00033305,2]
[383927996,1757175052034,-528.06296421,0.00033305,2]
[383927997,1757175061583,300.0,0.00028073,120]
[383927998,1757175062579,195.0,0.00028073,120]
[383927999,1757175062762,195.0,0.00026092,120]
[383928000,1757175064942,300.0,0.00028073,120]
[383928001,1757175065118,300.0,0.00026092,120]
[383928002,1757175065305,300.0,0.00027958,120]
[383928003,1757175065484,300.0,0.00027958,120]
[383928004,1757175065667,300.0,0.00027958,120]
[383928005,1757175067191,500.0,0.00028073,120]
[383928006,1757175067722,500.0,0.00025806,120]
[383928007,1757175067795,500.0,0.00026807,120]
[383928008,1757175069125,150.0,0.00028072,120]
[383928009,1757175079554,167.0,0.00019113,2]
[383928014,1757175344039,234.57,0.00028207,120]
[383928023,1757175423171,156.26,0.00014529,2]
[383928024,1757175423387,156.26,0.00016143,2]
[383928025,1757175423609,156.26,0.00017758,2]
[383928026,1757175424114,156.26,0.00019372,2]
[383928028,1757175439625,164.45578147,0.00019602,20]
[383928033,1757175925698,1211.58106043,0.000175,2]
[383928034,1757175947571,10696.71588094,0.0001995,15]
[383928035,1757175948643,-5000000.0,0.00038209,30]
[383928036,1757175955483,4768.81049769,0.000199,2]
[383928037,1757175978936,17833.28844188,0.000198,2]
[383928038,1757175997382,-215.70915303,0.00019799,2]
[383928039,1757175997410,-500.0,0.00019799,2]
[383928040,1757175997438,-385.18516639,0.00019799,2]
[383928041,1757175997466,-463.10568058,0.00019799,2]
[383928043,1757176062001,333.0,0.00030136,120]
[383928046,1757176126719,-367.71637291,0.00019,2]
[383928047,1757176130738,-412.19694794,0.00019,2]
[383928049,1757176135095,-201.723691,0.00019,2]
[383928050,1757176142892,-197.13864074,0.00019,2]
[383928051,1757176145749,-158.67918953,0.00019,2]
[383928052,1757176149498,-195.0,0.00019,2]
[383928053,1757176151999,-449.16407263,0.00019,2]
[383928054,1757176153593,-154.62,0.00019,2]
[383928055,1757176156402,-118.69707937,0.00019,2]
[383928056,1757176168204,-5000000.0,0.00038209,30]
[383928057,1757176173158,250.0,0.00015,2]
[383928058,1757176178525,-5000000.0,0.00038209,30]
[383928060,1757176188443,250.0,0.000206,30]
[383928061,1757176189045,714.928,0.000206,30]
[383928062,1757176205830,-5000000.0,0.00038209,30]
[383928063,1757176213809,-180.44499126,0.00019699,2]
[383928064,1757176215552,-251.99430679,0.00019699,2]
[383928065,1757176217652,-171.34477495,0.00019699,2]
[383928084,1757176232062,-1200.0,0.00019798,2]
[383928085,1757176232072,-1200.0,0.00019798,2]
[383928086,1757176232082,-300.0,0.00019798,2]
[383928087,1757176232091,-205.0,0.00019798,2]
[383928088,1757176232101,-250.0,0.00019799,2]
[383928089,1757176232111,-36.89431942,0.00019799,2]
[383928090,1757176232123,-500.0,0.00019799,2]
[383928091,1757176232134,-500.0,0.00019799,2]
[383928092,1757176232144,-500.0,0.00019799,2]
[383928093,1757176232155,-500.0,0.00019799,2]
[383928094,1757176232164,-500.0,0.00019799,2]
[383928095,1757176232173,-500.0,0.00019799,2]
[383928096,1757176232182,-621.5635814,0.00019799,2]
[383928097,1757176232191,-500.0,0.00019799,2]
[383928098,1757176232201,-500.0,0.00019799,2]
[383928099,1757176232211,-500.0,0.00019799,2]
[383928100,1757176232221,-500.0,0.00019799,2]
[383928101,1757176232231,-500.0,0.00019799,2]
[383928102,1757176232240,-500.0,0.00019799,2]
[383928103,1757176232251,-500.0,0.00019799,2]
[383928104,1757176232262,-49929.28026222,0.000198,2]
[383928109,1757176232309,-300.30053203,0.000198,2]
[383928111,1757176232322,-14203.11878986,0.000198,2]
[383928113,1757176232333,-21305.0,0.000198,2]
[383928121,1757176232420,-2087.54249947,0.000198,2]
[383928128,1757176238116,-1204.97018572,0.000198,2]
[383928129,1757176238127,-67919.7549606,0.000198,2]
[383928130,1757176238137,-3342.72514081,0.00019818,2]
[383928131,1757176238147,-250.0,0.00019918,2]
[383928132,1757176238157,-514.0,0.0001997,2]
[383928133,1757176238167,-23996.29930564,0.00019995,2]
[383928134,1757176238176,-181723.38206246,0.0002,2]
[383928135,1757176238186,-548.97584293,0.00020095,2]
[383928136,1757176238195,-500.0,0.00020195,2]
[383928137,1757176238205,-193.12922987,0.00020195,2]
[383928138,1757176238215,-500.0,0.00020638,2]
[383928139,1757176238225,-500.0,0.00020638,2]
[383928141,1757176238235,-22248.6679968,0.000207,2]
[383928142,1757176238244,-13558.66786013,0.0002085,2]
[383928143,1757176238259,-3110.25835049,0.0002085,2]
[383928144,1757176238271,-11034.0,0.0002085,2]
[383928146,1757176238283,-36214.98966125,0.0002085,2]
[383928147,1757176238293,-156.26,0.00020986,2]
[383928148,1757176238303,-15165.00651739,0.00021,2]
[383928149,1757176238312,-500.0,0.00021185,2]
[383928150,1757176238321,-2751.0,0.00021206,2]
[383928151,1757176238331,-222.0,0.00021323,2]
[383928153,1757176238341,-1136.76077728,0.00021324,2]
[383928154,1757176238350,-200.0,0.00021481,2]
[383928155,1757176238359,-160.0,0.00021558,7]
[383928157,1757176238369,-151.0,0.00021562,2]
[383928158,1757176238378,-420.0,0.00021562,2]
[383928159,1757176238387,-1680.0,0.00021666,2]
[383928160,1757176238397,-3342.72514079,0.00021684,2]
[383928161,1757176238407,-250.0,0.00021778,2]
[383928162,1757176238417,-195.0,0.00021778,2]
[383928163,1757176238427,-23996.29930559,0.00021841,2]
[383928164,1757176238436,-156.26,0.00022601,2]
[383928165,1757176238446,-548.97584291,0.00022668,2]
[383928166,1757176238459,-1000.0,0.00022697,2]
[383928167,1757176238469,-167.24,0.00023051,2]
[383928168,1757176238479,-166.67,0.00023378,2]
[383928169,1757176238488,-587.0,0.00023484,2]
[383928170,1757176238498,-3342.72514079,0.0002355,2]
[383928171,1757176238508,-23996.29930559,0.00023688,2]
[383928172,1757176238518,-2351.0,0.0002371,2]
[383928173,1757176238528,-156.26,0.00024215,2]
[383928174,1757176238537,-553.97775105,0.00024798,5]
[383928175,1757176238547,-72564.3508616,0.000248,2]
[383928176,1757176238556,-1500.45971008,0.000249,2]
[383928177,1757176238564,-548.97584291,0.00025242,2]
[383928178,1757176238573,-181.49,0.00025304,7]
[383928179,1757176238582,-3342.72514079,0.00025416,2]
[383928180,1757176238591,-823.0,0.00025576,2]
[383928181,1757176238600,-353.03,0.00025624,2]
[383928182,1757176238609,-156.26,0.00025829,2]
[383928183,1757176238618,-242.13,0.00025837,2]
[383928184,1757176238627,-3292.0,0.00025948,2]
[383928185,1757176238637,-499.98,0.00026,7]
[383928186,1757176238648,-250.0,0.0002616,2]
[383928187,1757176238657,-297.50750461,0.00026224,2]
[383928188,1757176238667,-600.0,0.00026224,2]
[383928189,1757176238677,-200.0,0.00026224,2]
[383928190,1757176238687,-151.0,0.00026224,2]
[383928191,1757176238696,-151.0,0.00026224,2]
[383928192,1757176238706,-151.0,0.00026224,2]
[383928193,1757176238715,-151.0,0.00026224,2]
[383928194,1757176238724,-151.0,0.00026224,2]
[383928195,1757176238734,-151.0,0.00026224,2]
[383928196,1757176238743,-151.0,0.00026224,2]
[383928197,1757176238752,-151.0,0.00026224,2]
[383928198,1757176238761,-151.0,0.00026224,2]
[383928199,1757176238770,-151.0,0.00026224,2]
[383928200,1757176238779,-151.0,0.00026224,2]
[383928201,1757176238788,-454.3046504,0.00026224,2]
[383928202,1757176238797,-151.0,0.00026224,2]
[383928203,1757176238806,-151.0,0.00026224,2]
[383928204,1757176238815,-151.0,0.00026224,2]
[383928205,1757176238824,-151.0,0.00026224,2]
[383928206,1757176238833,-151.0,0.00026224,2]
[383928207,1757176238843,-151.0,0.00026224,2]
[383928208,1757176238854,-151.0,0.00026224,2]
[383928209,1757176238863,-600.0,0.00026224,2]
[383928210,1757176238872,-289.10814609,0.00026224,2]
[383928211,1757176238881,-500.0,0.00026224,2]
[383928212,1757176238891,-500.0,0.00026224,2]
[383928213,1757176238900,-500.0,0.00026224,2]
[383928214,1757176238909,-233.85986707,0.00026224,2]
[383928215,1757176238918,-12094.0584769,0.0002623,2]
[383928216,1757176238927,-7466.31915585,0.0002624,2]
[383928217,1757176238936,-600.0,0.00026772,2]
[383928218,1757176238945,-181.49,0.00026917,7]
[383928219,1757176238953,-500.0,0.00027014,2]
[383928220,1757176238962,-3342.72514079,0.00027282,2]
[383928221,1757176238971,-661.68695416,0.0002732,2]
[383928222,1757176238979,-156.26,0.00027444,2]
[383928223,1757176238988,-499.98,0.00027553,7]
[383928224,1757176238997,-548.97584291,0.00027815,2]
[383928225,1757176239007,-1500.45971004,0.00027827,8]
[383928226,1757176239017,-792.0,0.00027856,2]
[383928227,1757176239027,-530.18637462,0.00028,3]
[383928228,1757176239036,-150.0,0.00028274,2]
[383928229,1757176239046,-150.0,0.00028375,2]
[383928230,1757176239056,-4609.0,0.00028396,2]
[383928231,1757176239065,-181.49,0.0002853,30]
[383928232,1757176239075,-8056.85536483,0.000286,2]
[383928233,1757176239084,-1247.88,0.00028692,2]
[383928234,1757176239094,-160.21,0.00028733,2]
[383928235,1757176239103,-268.44,0.00028752,2]
[383928236,1757176239112,-400.0,0.0002877,2]
[383928237,1757176239122,-12094.0584769,0.00028967,2]
[383928238,1757176239131,-5000.0,0.00028977,2]
[383928239,1757176239140,-1367.01,0.00028995,2]
[383928240,1757176239150,-666.0,0.00029015,3]
[383928241,1757176239159,-2265.59525102,0.00029026,2]
[383928242,1757176239168,-200.0,0.00029034,2]
[383928243,1757176239178,-455.96615533,0.00029034,2]
[383928246,1757176239911,-544.03384467,0.00029034,2]
[383928247,1757176239921,-1500.0,0.00029039,16]
[383928248,1757176239930,-353.03,0.00029049,2]
[383928249,1757176239940,-156.26,0.00029058,2]
[383928250,1757176239950,-201.43,0.0002914,30]
[383928251,1757176239960,-3342.72514079,0.00029148,2]
[383928252,1757176239969,-250.0,0.00029246,2]
[383928253,1757176239979,-4082.38042904,0.00029396,2]
[383928254,1757176240018,-917.61957096,0.00029396,2]
[383928255,1757176240027,-686.21004436,0.00029429,2]
[383928256,1757176240037,-514.85095374,0.00029618,2]
[383928257,1757176240047,-212.67823062,0.00029618,2]
[383928258,1757176240057,-160.0,0.00029618,2]
[383928259,1757176240066,-160.0,0.00029618,2]
[383928260,1757176240076,-400.0,0.00029848,2]
[383928261,1757176240085,-399.999999,0.0003,2]
[383928262,1757176240095,-2005.82398773,0.0003,2]
[383928263,1757176240104,-181.49,0.00030137,30]
[383928264,1757176240113,-268.44,0.0003019,2]
[383928265,1757176240123,-240.06,0.0003027,2]